lending/lending_fUSD_20240111
["ID","MTS","AMOUNT","RATE_DAILY","PERIOD"]
[311177725,1704970240894,-489.11,0.00036712,4]
[311177726,1704970240906,-500.0,0.00036712,4]
[311177727,1704970240916,-500.0,0.00036712,4]
[311177728,1704970240925,-500.0,0.00036712,4]
[311177729,1704970240934,-500.0,0.00036712,4]
[311177730,1704970240943,-386.03922911,0.00036712,4]
[311177731,1704970240955,-1012.69311932,0.00036712,7]
[311177732,1704970240964,-500.0,0.00036712,4]
[311177733,1704970240973,-500.0,0.00036712,4]
[311177734,1704970240983,-502.47999553,0.00036712,4]
[311177735,1704970240994,-500.0,0.00036712,4]
[311177736,1704970241004,-442.87,0.00036712,4]
[311177737,1704970241014,-500.0,0.00036712,4]
[311177738,1704970241024,-561.05,0.00036712,4]
[311177739,1704970241034,-500.0,0.00036712,4]
[311177740,1704970241044,-500.0,0.00036712,4]
[311177741,1704970241054,-500.0,0.00036712,4]
[311177742,1704970241066,-500.0,0.00036712,4]
[311177743,1704970241075,-500.0,0.00036712,4]
[311177744,1704970241084,-591.15761512,0.00036712,4]
[311177745,1704970241095,-500.0,0.00036712,4]
[311177746,1704970241104,-500.0,0.00036712,4]
[311177747,1704970241113,-681.92,0.00036712,4]
[311177748,1704970241123,-500.0,0.00036712,4]
[311177749,1704970241132,-361.95,0.00036712,4]
[311177750,1704970241142,-500.0,0.00036712,4]
[311177751,1704970241151,-500.0,0.00036712,4]
[311177752,1704970241160,-527.22,0.00036712,4]
[311177753,1704970241170,-500.0,0.00036712,4]
[311177754,1704970241179,-508.76906566,0.00036712,4]
[311177755,1704970241188,-500.0,0.00036712,4]
[311177756,1704970241197,-500.0,0.00036712,4]
[311177757,1704970241208,-500.0,0.00036712,4]
[311177758,1704970241217,-500.0,0.00036712,4]
[311177759,1704970241226,-505.99892101,0.00036712,4]
[311177760,1704970241236,-500.0,0.00036712,4]
[311177761,1704970241245,-500.0,0.00036712,4]
[311177762,1704970241254,-500.0,0.00036712,4]
[311177763,1704970241263,-500.0,0.00036712,4]
[311177764,1704970241273,-533.4,0.00036712,4]
[311177765,1704970241282,-500.0,0.00036712,4]
[311177766,1704970241291,-500.0,0.00036712,4]
[311177767,1704970241301,-503.12935536,0.00036712,4]
[311177768,1704970241310,-511.97,0.00036712,4]
[311177769,1704970241319,-509.97755572,0.00036712,4]
[311177770,1704970241328,-500.0,0.00036712,4]
[311177771,1704970241338,-500.0,0.00036712,4]
[311177772,1704970241347,-500.0,0.00036712,4]
[311177773,1704970241356,-500.0,0.00036712,4]
[311177774,1704970241365,-500.0,0.00036712,4]
[311177775,1704970241374,-500.0,0.00036712,4]
[311177776,1704970241383,-500.0,0.00036712,4]
[311177777,1704970241392,-976.2,0.00036712,5]
[311177778,1704970241401,-500.0,0.00036712,4]
[311177779,1704970241412,-503.82743464,0.00036712,4]
[311177780,1704970241423,-500.0,0.00036712,4]
[311177781,1704970241433,-500.0,0.00036712,4]
[311177782,1704970241442,-500.0,0.00036712,4]
[311177783,1704970241451,-508.68359406,0.00036712,4]
[311177784,1704970241463,-1000.0,0.00036712,7]
[311177785,1704970241474,-500.0,0.00036712,4]
[311177786,1704970241484,-500.0,0.00036712,4]
[311177787,1704970241493,-500.0,0.00036712,4]
[311177788,1704970241503,-500.0,0.00036712,4]
[311177789,1704970241513,-500.0,0.00036712,4]
[311177790,1704970241522,-500.0,0.00036712,4]
[311177791,1704970241532,-500.0,0.00036712,4]
[311177792,1704970241541,-500.0,0.00036712,4]
[311177793,1704970241551,-500.0,0.00036712,4]
[311177794,1704970241560,-5800.39,0.00036712,4]
[311177795,1704970241570,-500.0,0.00036712,4]
[311177796,1704970241580,-500.0,0.00036712,4]
[311177797,1704970241589,-500.0,0.00036712,4]
[311177798,1704970241598,-500.0,0.00036712,4]
[311177799,1704970241607,-500.0,0.00036712,4]
[311177800,1704970241617,-500.0,0.00036712,4]
[311177801,1704970241628,-500.0,0.00036712,4]
[311177802,1704970241638,-500.0,0.00036712,4]
[311177803,1704970241649,-502.04627997,0.00036712,4]
[311177804,1704970241660,-515.64796883,0.00036712,4]
[311177805,1704970241669,-500.0,0.00036712,4]
[311177806,1704970241678,-500.0,0.00036712,4]
[311177807,1704970241687,-500.0,0.00036712,4]
[311177808,1704970241696,-500.0,0.00036712,4]
[311177809,1704970241706,-500.0,0.00036712,4]
[311177810,1704970241715,-512.2941084,0.00036712,4]
[311177811,1704970241725,-500.0,0.00036712,4]
[311177812,1704970241734,-500.0,0.00036712,4]
[311177813,1704970241743,-500.0,0.00036712,4]
[311177814,1704970241752,-500.0,0.00036712,4]
[311177815,1704970241761,-500.0,0.00036712,4]
[311177816,1704970241770,-195.6183,0.00036712,4]
[311177817,1704970241779,-500.0,0.00036712,4]
[311177818,1704970241788,-500.0,0.00036712,4]
[311177819,1704970241797,-500.0,0.00036712,4]
[311177820,1704970241806,-494.48467583,0.00036712,4]
[311177821,1704970241815,-506.00773121,0.00036712,4]
[311177822,1704970241824,-500.0,0.00036712,4]
[311177823,1704970241833,-500.0,0.00036712,4]
[311177824,1704970241842,-500.0,0.00036712,4]
[311177825,1704970241850,-500.0,0.00036712,4]
[311177826,1704970241859,-500.0,0.00036712,4]
[311177827,1704970241871,-500.0,0.00036712,4]
[311177829,1704970241880,-507.71,0.00036712,4]
[311177831,1704970241889,-500.0,0.00036712,4]
[311177833,1704970241898,-612.0,0.00036712,4]
[311177835,1704970241909,-500.0,0.00036712,4]
[311177837,1704970241917,-500.0,0.00036712,4]
[311177838,1704970241926,-500.0,0.00036712,4]
[311177840,1704970241936,-500.0,0.00036712,4]
[311177843,1704970241944,-500.0,0.00036712,4]
[311177846,1704970241953,-500.0,0.00036712,4]
[311177848,1704970241964,-500.0,0.00036712,4]
[311177852,1704970241974,-500.0,0.00036712,4]
[311177854,1704970241983,-500.0,0.00036712,4]
[311177857,1704970241993,-500.0,0.00036712,4]
[311177859,1704970242003,-500.0,0.00036712,4]
[311177861,1704970242012,-500.0,0.00036712,4]
[311177863,1704970242021,-610.62,0.00036712,4]
[311177865,1704970242030,-500.0,0.00036712,4]
[311177867,1704970242040,-500.0,0.00036712,4]
[311177869,1704970242049,-444.92,0.00036712,4]
[311177871,1704970242058,-500.0,0.00036712,4]
[311177873,1704970242068,-500.0,0.00036712,4]
[311177875,1704970242078,-586.23664856,0.00036712,4]
[311177877,1704970242087,-500.0,0.00036712,4]
[311177879,1704970242096,-500.0,0.00036712,4]
[311177881,1704970242105,-500.0,0.00036712,4]
[311177883,1704970242114,-500.0,0.00036712,4]
[311177885,1704970242123,-500.0,0.00036712,4]
[311177887,1704970242132,-500.0,0.00036712,4]
[311177888,1704970242142,-500.0,0.00036712,4]
[311177890,1704970242151,-228.8,0.00036712,4]
[311177892,1704970242161,-500.0,0.00036712,4]
[311177893,1704970242170,-500.0,0.00036712,4]
[311177894,1704970242180,-500.0,0.00036712,4]
[311177895,1704970242189,-506.69621066,0.00036712,4]
[311177896,1704970242199,-500.0,0.00036712,4]
[311177897,1704970242210,-500.0,0.00036712,4]
[311177898,1704970242219,-500.0,0.00036712,4]
[311177899,1704970242228,-500.0,0.00036712,4]
[311177900,1704970242237,-500.0,0.00036712,4]
[311177901,1704970242246,-502.77139251,0.00036712,4]
[311177902,1704970242256,-500.0,0.00036712,4]
[311177903,1704970242265,-500.0,0.00036712,4]
[311177904,1704970242275,-500.0,0.00036712,4]
[311177905,1704970242285,-236.16011969,0.00036712,4]
[311177906,1704970242296,-150.0,0.00036728,2]
[311177907,1704970242305,-187.97504453,0.00036745,2]
[311177908,1704970242314,-151.40111,0.00036748,6]
[311177909,1704970242424,-150.0,0.00036752,2]
[311177910,1704970242433,-270.79485481,0.00036756,2]
[311177911,1704970242443,-150.0,0.00036757,2]
[311177912,1704970242452,-150.0,0.00036765,2]
[311177913,1704970242462,-150.0,0.00036768,2]
[311177914,1704970242471,-150.0,0.0003677,2]
[311177915,1704970242481,-150.0,0.00036777,2]
[311177916,1704970242490,-150.0,0.00036777,2]
[311177917,1704970242499,-150.0,0.00036778,2]
[311177918,1704970242508,-150.0,0.00036778,2]
[311177919,1704970242517,-150.0,0.00036786,2]
[311177920,1704970242526,-151.40111,0.00036798,4]
[311177921,1704970242535,-150.0,0.00036799,2]
[311177922,1704970242545,-441.4268,0.000368,2]
[311177923,1704970242554,-151.13503095,0.000368,2]
[311177924,1704970242563,-5858.324008,0.000368,14]
[311177925,1704970242572,-150.0,0.00036803,2]
[311177926,1704970242582,-150.0,0.00036827,2]
[311177927,1704970242591,-270.79485481,0.00036828,2]
[311177928,1704970242599,-150.0,0.0003683,2]
[311177929,1704970242608,-150.0,0.00036834,2]
[311177930,1704970242617,-150.0,0.00036841,2]
[311177931,1704970242626,-150.0,0.00036845,2]
[311177932,1704970242636,-151.40111,0.00036848,6]
[311177933,1704970242645,-150.0,0.0003685,2]
[311177934,1704970242654,-150.0,0.00036852,2]
[311177935,1704970242664,-559.80611919,0.00036856,2]
[311177936,1704970242673,-150.0,0.00036868,2]
[311177937,1704970242682,-150.0,0.0003687,2]
[311177938,1704970242691,-150.0,0.00036872,2]
[311177939,1704970242700,-417.95209149,0.0003688,4]
[311177940,1704970242711,-150.0,0.00036885,2]
[311177941,1704970242720,-250.0,0.00036886,2]
[311177942,1704970242728,-500.0,0.00036897,2]
[311177943,1704970242737,-500.0,0.00036897,4]
[311177944,1704970242746,-500.0,0.00036897,4]
[311177945,1704970242756,-763.42599532,0.00036898,2]
[311177946,1704970242765,-223.48910038,0.00036898,4]
[311177947,1704970242775,-220.52698479,0.00036898,4]
[311177948,1704970242784,-487.18748295,0.00036898,4]
[311177949,1704970242794,-6993.72504374,0.00036898,4]
[311177950,1704970242803,-155.0,0.00036898,4]
[311177951,1704970242814,-236.76585008,0.00036898,4]
[311177952,1704970242824,-371.73921279,0.00036898,4]
[311177953,1704970242834,-297.90035849,0.00036898,4]
[311177954,1704970242845,-202.33428816,0.00036898,4]
[311177955,1704970242854,-1718.4405539,0.00036898,4]
[311177956,1704970242864,-6543.56492024,0.00036898,9]
[311177957,1704970242874,-151.40111,0.00036898,4]
[311177958,1704970242883,-182.90823691,0.00036899,4]
[311177959,1704970242893,-286.78429064,0.00036899,2]
[311177961,1704970242905,-5099.30032581,0.00036899,4]
[311177962,1704970242914,-244.02773352,0.00036899,4]
[311177963,1704970242924,-1653.04661781,0.00036899,4]
[311177964,1704970242933,-500.0,0.00036899,4]
[311177965,1704970242942,-500.0,0.00036899,2]
[311177966,1704970242952,-500.0,0.00036899,4]
[311177967,1704970242962,-500.0,0.00036899,4]
[311177968,1704970242971,-172.38157,0.00036899,2]
[311177969,1704970242980,-1999.30430026,0.00036899,2]
[311177970,1704970242990,-159.0551351,0.00036899,2]
[311177971,1704970243000,-214.9718831,0.00036899,2]
[311177973,1704970243009,-3405.596098,0.00036899,2]
[311177975,1704970243018,-174.73011459,0.00036899,2]
[311177977,1704970243028,-217185.8655933,0.000369,5]
[311177979,1704970243037,-15080.96,0.000369,7]
[311177980,1704970243046,-2000.0,0.000369,2]
[311177981,1704970243055,-3412.80530229,0.000369,3]
[311177985,1704970243065,-1028.0,0.000369,7]
[311177988,1704970243075,-270.79485481,0.000369,2]
[311177991,1704970243086,-150.0,0.00036913,2]
[311177993,1704970243097,-150.0,0.0003692,2]
[311177995,1704970243107,-500.0,0.00036923,2]
[311177997,1704970243116,-150.0,0.00036928,2]
[311177999,1704970243127,-150.0,0.00036942,2]
[311178001,1704970243137,-151.40111,0.00036948,6]
[311178002,1704970243146,-150.0,0.00036952,2]
[311178004,1704970243156,-150.0,0.00036959,2]
[311178005,1704970243165,-7999.99,0.00036966,14]
[311178006,1704970243175,-150.0,0.00036966,2]
[311178007,1704970243186,-300.0,0.00036966,2]
[311178008,1704970243196,-150.0,0.00036968,2]
[311178009,1704970243207,-150.0,0.00036969,2]
[311178010,1704970243217,-150.0,0.00036972,2]
[311178011,1704970243228,-500.0,0.00036986,4]
[311178012,1704970243238,-500.0,0.00036986,4]
[311178013,1704970243248,-1000.0,0.00036986,2]
[311178014,1704970243258,-500.0,0.00036986,4]
[311178015,1704970243268,-500.0,0.00036986,4]
[311178016,1704970243278,-196.65,0.00036986,4]
[311178017,1704970243288,-552.96,0.00036986,4]
[311178018,1704970243298,-610.54,0.00036986,4]
[311178019,1704970243308,-500.0,0.00036986,2]
[311178020,1704970243318,-500.0,0.00036986,4]
[311178021,1704970243328,-188.50877231,0.00036986,4]
[311178022,1704970243339,-551.04248716,0.00036986,2]
[311178023,1704970243349,-158.34290368,0.00036986,4]
[311178024,1704970243358,-500.0,0.00036986,4]
[311178025,1704970243368,-527.98956342,0.00036986,4]
[311178026,1704970243379,-557.69976991,0.00036986,4]
[311178027,1704970243391,-500.0,0.00036986,4]
[311178028,1704970243401,-500.0,0.00036986,4]
[311178029,1704970243411,-500.0,0.00036986,4]
[311178030,1704970243422,-500.0,0.00036986,4]
[311178031,1704970243431,-168.19334241,0.00036986,4]
[311178032,1704970243440,-500.0,0.00036986,4]
[311178033,1704970243450,-500.0,0.00036986,4]
[311178034,1704970243461,-500.0,0.00036986,4]
[311178035,1704970243471,-500.0,0.00036986,7]
[311178036,1704970243480,-500.0,0.00036986,4]
[311178037,1704970243490,-448.88639354,0.00036986,4]
[311178038,1704970243499,-500.0,0.00036986,4]
[311178039,1704970243510,-500.0,0.00036986,4]
[311178040,1704970243520,-500.0,0.00036986,4]
[311178041,1704970243530,-500.0,0.00036986,4]
[311178042,1704970243539,-612.27605976,0.00036986,4]
[311178043,1704970243549,-530.85,0.00036986,4]
[311178044,1704970243559,-500.0,0.00036986,4]
[311178045,1704970243571,-500.0,0.00036986,4]
[311178046,1704970243581,-500.0,0.00036986,4]
[311178047,1704970243590,-500.0,0.00036986,4]
[311178048,1704970243600,-500.0,0.00036986,4]
[311178049,1704970243609,-500.0,0.00036986,4]
[311178050,1704970243618,-500.0,0.00036986,4]
[311178051,1704970243627,-278.59,0.00036986,4]
[311178052,1704970243637,-500.0,0.00036986,4]
[311178053,1704970243646,-500.0,0.00036986,4]
[311178054,1704970243655,-500.0,0.00036986,4]
[311178055,1704970243664,-865.67,0.00036986,4]
[311178056,1704970243673,-558.97176371,0.00036986,4]
[311178058,1704970243682,-500.0,0.00036986,4]
[311178059,1704970243691,-500.0,0.00036986,4]
[311178060,1704970243701,-562.5731878,0.00036986,4]
[311178061,1704970243712,-500.0,0.00036986,4]
[311178063,1704970243720,-500.0,0.00036986,2]
[311178065,1704970243729,-500.0,0.00036986,4]
[311178066,1704970243737,-500.0,0.00036986,4]
[311178069,1704970243747,-500.0,0.00036986,4]
[311178071,1704970243756,-639.0587368,0.00036986,4]
[311178072,1704970243765,-500.0,0.00036986,4]
[311178073,1704970243774,-309.81,0.00036986,4]
[311178074,1704970243783,-1000.0,0.00036986,2]
[311178075,1704970243792,-1000.0,0.00036986,2]
[311178076,1704970243801,-1000.0,0.00036986,2]
[311178077,1704970243810,-1000.0,0.00036986,2]
[311178078,1704970243819,-500.0,0.00036986,4]
[311178079,1704970243828,-291.97368884,0.00036986,4]
[311178080,1704970243837,-500.0,0.00036986,4]
[311178081,1704970243846,-500.0,0.00036986,4]
[311178082,1704970243855,-500.0,0.00036986,4]
[311178083,1704970243865,-500.0,0.00036986,4]
[311178084,1704970243875,-500.0,0.00036986,4]
[311178085,1704970243884,-500.0,0.00036986,4]
[311178086,1704970243893,-500.0,0.00036986,4]
[311178087,1704970243906,-500.0,0.00036986,4]
[311178088,1704970243916,-500.0,0.00036986,4]
[311178089,1704970243925,-280.857648,0.00036986,4]
[311178090,1704970243935,-500.0,0.00036986,4]
[311178091,1704970243944,-500.0,0.00036986,4]
[311178092,1704970243954,-500.0,0.00036986,4]
[311178093,1704970243963,-500.0,0.00036986,4]
[311178094,1704970243973,-500.0,0.00036986,4]
[311178095,1704970243983,-500.0,0.00036986,4]
[311178096,1704970243992,-359.45908627,0.00036986,4]
[311178097,1704970244002,-500.0,0.00036986,4]
[311178098,1704970244012,-566.7,0.00036986,4]
[311178099,1704970244022,-500.0,0.00036986,4]
[311178100,1704970244031,-500.0,0.00036986,4]
[311178101,1704970244041,-500.0,0.00036986,4]
[311178102,1704970244050,-500.0,0.00036986,4]
[311178103,1704970244059,-973.2,0.00036986,4]
[311178104,1704970244068,-559.47,0.00036986,4]
[311178105,1704970244078,-554.87,0.00036986,4]
[311178106,1704970244087,-500.0,0.00036986,4]
[311178107,1704970244097,-500.0,0.00036986,4]
[311178108,1704970244106,-500.0,0.00036986,4]
[311178109,1704970244115,-500.0,0.00036986,4]
[311178110,1704970244124,-307.43432617,0.00036986,4]
[311178111,1704970244134,-825.18,0.00036986,4]
[311178112,1704970244143,-500.0,0.00036986,4]
[311178113,1704970244152,-472.80334933,0.00036986,4]
[311178114,1704970244161,-500.0,0.00036986,4]
[311178115,1704970244170,-500.0,0.00036986,4]
[311178116,1704970244179,-500.0,0.00036986,4]
[311178117,1704970244189,-500.0,0.00036986,4]
[311178118,1704970244198,-500.0,0.00036986,4]
[311178119,1704970244207,-500.0,0.00036986,4]
[311178120,1704970244216,-500.0,0.00036986,4]
[311178121,1704970244225,-500.0,0.00036986,4]
[311178122,1704970244234,-500.0,0.00036986,4]
[311178123,1704970244243,-500.0,0.00036986,4]
[311178124,1704970244253,-500.0,0.00036986,4]
[311178125,1704970244262,-500.0,0.00036986,4]
[311178126,1704970244271,-500.0,0.00036986,4]
[311178127,1704970244280,-500.0,0.00036986,4]
[311178128,1704970244289,-500.0,0.00036986,4]
[311178129,1704970244298,-500.0,0.00036986,4]
[311178130,1704970244307,-500.0,0.00036986,4]
[311178131,1704970244316,-500.0,0.00036986,4]
[311178132,1704970244325,-500.0,0.00036986,4]
[311178133,1704970244335,-500.0,0.00036986,4]
[311178134,1704970244344,-871.78,0.00036986,4]
[311178135,1704970244353,-500.0,0.00036986,4]
[311178136,1704970244362,-500.0,0.00036986,4]
[311178137,1704970244371,-500.0,0.00036986,4]
[311178138,1704970244380,-500.0,0.00036986,4]
[311178139,1704970244389,-289.59,0.00036986,4]
[311178140,1704970244399,-500.0,0.00036986,4]
[311178141,1704970244408,-826.56,0.00036986,4]
[311178142,1704970244417,-500.0,0.00036986,4]
[311178143,1704970244426,-500.0,0.00036986,4]
[311178144,1704970244436,-500.0,0.00036986,4]
[311178145,1704970244445,-579.69,0.00036986,5]
[311178146,1704970244454,-500.0,0.00036986,4]
[311178147,1704970244464,-500.0,0.00036986,4]
[311178148,1704970244472,-500.0,0.00036986,4]
[311178149,1704970244481,-568.95,0.00036986,4]
[311178150,1704970244491,-500.0,0.00036986,4]
[311178151,1704970244500,-500.0,0.00036986,4]
[311178152,1704970244605,-500.0,0.00036986,4]
[311178153,1704970244615,-500.0,0.00036986,4]
[311178154,1704970244625,-500.0,0.00036986,4]
[311178155,1704970244634,-446.45540821,0.00036986,4]
[311178156,1704970244650,-1418.47,0.00036986,4]
[311178157,1704970244678,-500.0,0.00036986,4]
[311178158,1704970244688,-832.56,0.00036986,4]
[311178159,1704970244697,-588.0,0.00036986,4]
[311178160,1704970244708,-678.71,0.00036986,4]
[311178161,1704970244718,-500.0,0.00036986,4]
[311178162,1704970244727,-500.0,0.00036986,4]
[311178163,1704970244737,-500.0,0.00036986,4]
[311178164,1704970244746,-500.0,0.00036986,4]
[311178165,1704970244755,-500.0,0.00036986,4]
[311178166,1704970244766,-500.0,0.00036986,4]
[311178167,1704970244776,-500.0,0.00036986,4]
[311178168,1704970244789,-500.0,0.00036986,4]
[311178169,1704970244799,-500.0,0.00036986,4]
[311178170,1704970244810,-500.0,0.00036986,4]
[311178171,1704970244821,-500.0,0.00036986,4]
[311178172,1704970244832,-500.0,0.00036986,4]
[311178173,1704970244842,-500.0,0.00036986,4]
[311178174,1704970244853,-681.92,0.00036986,4]
[311178175,1704970244867,-500.0,0.00036986,4]
[311178176,1704970244879,-500.0,0.00036986,4]
[311178177,1704970244890,-500.0,0.00036986,4]
[311178178,1704970244900,-500.0,0.00036986,4]
[311178179,1704970244911,-500.0,0.00036986,4]
[311178180,1704970244921,-500.0,0.00036986,4]
[311178181,1704970244932,-500.0,0.00036986,4]
[311178182,1704970244944,-500.0,0.00036986,4]
[311178183,1704970244954,-533.4,0.00036986,4]
[311178184,1704970244964,-500.0,0.00036986,4]
[311178185,1704970244974,-500.0,0.00036986,4]
[311178186,1704970244985,-445.89766975,0.00036986,4]
[311178187,1704970244997,-976.2,0.00036986,5]
[311178188,1704970245006,-500.0,0.00036986,4]
[311178189,1704970245017,-500.0,0.00036986,4]
[311178190,1704970245028,-500.0,0.00036986,4]
[311178191,1704970245038,-500.0,0.00036986,4]
[311178192,1704970245048,-500.0,0.00036986,4]
[311178193,1704970245058,-5800.39,0.00036986,4]
[311178194,1704970245067,-500.0,0.00036986,4]
[311178195,1704970245076,-556.86526821,0.00036986,4]
[311178196,1704970245086,-487.70011117,0.00036986,4]
[311178197,1704970245096,-500.0,0.00036986,4]
[311178198,1704970245107,-500.0,0.00036986,4]
[311178199,1704970245117,-500.0,0.00036986,4]
[311178200,1704970245127,-500.0,0.00036986,4]
[311178201,1704970245137,-500.0,0.00036986,4]
[311178202,1704970245146,-500.0,0.00036986,4]
[311178203,1704970245156,-500.0,0.00036986,4]
[311178204,1704970245167,-500.0,0.00036986,4]
[311178205,1704970245176,-500.0,0.00036986,4]
[311178206,1704970245186,-500.0,0.00036986,4]
[311178207,1704970245195,-507.71,0.00036986,4]
[311178208,1704970245205,-612.0,0.00036986,4]
[311178209,1704970245214,-362.93200288,0.00036986,4]
[311178210,1704970245224,-500.0,0.00036986,4]
[311178211,1704970245233,-500.0,0.00036986,4]
[311178212,1704970245242,-588.96551081,0.00036986,4]
[311178213,1704970245251,-610.62,0.00036986,4]
[311178214,1704970245261,-500.0,0.00036986,4]
[311178215,1704970245270,-411.97753852,0.00036986,4]
[311178216,1704970245279,-500.0,0.00036986,4]
[311178217,1704970245289,-500.0,0.00036986,4]
[311178218,1704970245298,-552.78194943,0.00036986,4]
[311178219,1704970245308,-500.0,0.00036986,4]
[311178220,1704970245317,-500.0,0.00036986,4]
[311178221,1704970245326,-858.635661,0.00036986,7]
[311178222,1704970245336,-858.635661,0.00036986,7]
[311178223,1704970245346,-151.0,0.00036986,7]
[311178224,1704970245356,-151.45,0.00036986,2]
[311178225,1704970245366,-187.95033832,0.0003699,2]
[311178226,1704970245377,-48119.23,0.0003699,4]
[311178227,1704970245387,-271.48297066,0.00036993,2]
[311178228,1704970245397,-500.0,0.00036996,4]
[311178229,1704970245408,-1089.18778885,0.00036997,2]
[311178230,1704970245419,-928.61364803,0.00036998,4]
[311178231,1704970245428,-611.1067152,0.00036998,2]
[311178232,1704970245439,-151.40111,0.00036998,4]
[311178233,1704970245449,-3291.64435569,0.00036999,2]
[311178234,1704970245462,-150.01,0.00036999,2]
[311178235,1704970245472,-500.0,0.00036999,4]
[311178236,1704970245482,-500.0,0.00036999,4]
[311178237,1704970245492,-500.0,0.00036999,4]
[311178238,1704970245502,-500.0,0.00036999,4]
[311178239,1704970245512,-582.25399624,0.00036999,4]
[311178240,1704970245522,-500.0,0.00036999,2]
[311178241,1704970245532,-500.0,0.00036999,2]
[311178242,1704970245541,-605.58709502,0.00036999,4]
[311178243,1704970245551,-500.0,0.00036999,2]
[311178244,1704970245562,-500.0,0.00036999,2]
[311178245,1704970245571,-500.0,0.00036999,2]
[311178246,1704970245581,-500.0,0.00036999,2]
[311178247,1704970245591,-500.0,0.00036999,2]
[311178248,1704970245600,-500.0,0.00036999,2]
[311178249,1704970245610,-500.0,0.00036999,2]
[311178250,1704970245619,-500.0,0.00036999,2]
[311178251,1704970245629,-500.0,0.00036999,2]
[311178252,1704970245638,-500.0,0.00036999,2]
[311178253,1704970245648,-500.0,0.00036999,2]
[311178254,1704970245657,-500.0,0.00036999,2]
[311178255,1704970245666,-500.0,0.00036999,4]
[311178256,1704970245676,-500.0,0.00036999,4]
[311178257,1704970245685,-500.0,0.00036999,4]
[311178258,1704970245694,-500.0,0.00036999,4]
[311178259,1704970245704,-500.0,0.00036999,4]
[311178260,1704970245718,-500.0,0.00036999,4]
[311178261,1704970245728,-382.97894055,0.00036999,4]
[311178262,1704970245738,-1000.0,0.00036999,2]
[311178263,1704970245748,-1000.0,0.00036999,2]
[311178264,1704970245757,-1000.0,0.00036999,2]
[311178265,1704970245767,-1000.0,0.00036999,2]
[311178266,1704970245776,-1000.0,0.00036999,2]
[311178267,1704970245786,-155.48,0.00036999,2]
[311178268,1704970245795,-150.0,0.00036999,2]
[311178269,1704970245805,-150.0,0.00036999,2]
[311178270,1704970245814,-1264147.83809244,0.00036999,2]
[311178271,1704970245824,-151.0,0.00036999,7]
[311178272,1704970245833,-151.0,0.00036999,7]
[311178273,1704970245841,-151.0,0.00036999,7]
[311178274,1704970245850,-151.0,0.00036999,7]
[311178275,1704970245859,-151.0,0.00036999,7]
[311178276,1704970245870,-151.0,0.00036999,7]
[311178277,1704970245888,-151.0,0.00036999,7]
[311178278,1704970245902,-151.0,0.00036999,7]
[311178279,1704970245915,-189.302742,0.00036999,7]
[311178280,1704970245924,-189.302742,0.00036999,7]
[311178281,1704970245933,-1404.95150672,0.00036999,2]
[311178282,1704970245942,-151.0,0.00036999,7]